bitfinex-derivatives/quotes_BTCF0:USTF0_20250329
["timestamp","ask_amount","ask_price","bid_price","bid_amount"]
[1743239417993,0.5442837,83888.0,83887.0,0.00085879]
[1743239418200,0.5442837,83888.0,83887.0,0.00017879]
[1743239418398,0.5442837,83888.0,83887.0,0.00077879]
[1743239419202,0.5442837,83888.0,83887.0,0.00017879]
[1743239419707,0.1834837,83888.0,83887.0,0.00017879]
[1743239419899,0.1834837,83888.0,83887.0,0.00077879]
[1743239420201,0.5442837,83888.0,83887.0,0.00077879]
[1743239421599,0.68694366,83888.0,83887.0,0.00017879]
[1743239422607,0.68694366,83888.0,83887.0,0.00077879]
[1743239423397,0.68694366,83888.0,83887.0,0.00017879]
[1743239425602,0.69596738,83888.0,83887.0,0.00017879]
[1743239425996,0.55330742,83888.0,83887.0,0.00017879]
[1743239426906,0.55330742,83888.0,83887.0,1.50017879]
[1743239427096,0.55330742,83888.0,83887.0,1.50077879]
[1743239427994,0.55330742,83888.0,83887.0,0.00077879]
[1743239428208,0.55330742,83888.0,83887.0,0.00017879]
[1743239428795,0.55330742,83888.0,83887.0,0.00089879]
[1743239428995,0.19250742,83888.0,83887.0,0.00089879]
[1743239429408,0.55330742,83888.0,83887.0,0.00089879]
[1743239429706,0.55330742,83888.0,83887.0,0.00017879]
[1743239430095,0.55330742,83888.0,83887.0,0.00077879]
[1743239431806,0.55330742,83888.0,83887.0,0.00017879]
[1743239434907,0.19250742,83888.0,83887.0,0.00017879]
[1743239435096,0.55330742,83888.0,83887.0,0.00017879]
[1743239436104,0.19250742,83888.0,83887.0,0.00017879]
[1743239436303,0.55330742,83888.0,83887.0,0.00017879]
[1743239437314,0.19250742,83888.0,83887.0,0.00017879]
[1743239437608,0.55330742,83888.0,83887.0,0.00017879]
[1743239441307,0.56728378,83888.0,83887.0,0.00017879]
[1743239444615,0.20648378,83888.0,83887.0,0.00017879]
[1743239444817,0.56728378,83888.0,83887.0,0.00017879]
[1743239446316,0.5672946,83888.0,83887.0,0.00017879]
[1743239447016,0.2064946,83888.0,83887.0,0.00017879]
[1743239447221,0.5672946,83888.0,83887.0,0.00017879]
[1743239447702,0.60476742,83888.0,83887.0,0.00017879]
[1743239447902,0.66856742,83888.0,83887.0,0.00017879]
[1743239448317,0.87484351,83888.0,83887.0,0.00017879]
[1743239450614,0.51404351,83888.0,83887.0,0.00017879]
[1743239450817,0.87484351,83888.0,83887.0,0.00017879]
[1743239452620,0.51404351,83888.0,83887.0,0.00017879]
[1743239452920,0.51404351,83888.0,83887.0,0.00085879]
[1743239452921,0.87484351,83888.0,83887.0,0.00085879]
[1743239453114,0.87484351,83888.0,83887.0,0.00017879]
[1743239453314,0.51404351,83888.0,83887.0,0.00017879]
[1743239453512,0.87484351,83888.0,83887.0,0.00085879]
[1743239453709,0.87484351,83888.0,83887.0,0.00017879]
[1743239455227,0.7544989,83888.0,83887.0,0.00017879]
[1743239455521,0.3936989,83888.0,83887.0,0.00017879]
[1743239455913,0.7544989,83888.0,83887.0,0.00017879]
[1743239456420,0.75452233,83888.0,83887.0,0.00017879]
[1743239458623,0.39372233,83888.0,83887.0,0.00017879]
[1743239458810,0.75452233,83888.0,83887.0,0.00017879]
[1743239459614,0.39372233,83888.0,83887.0,0.00017879]
[1743239460017,0.75452233,83888.0,83887.0,0.00017879]
[1743239461626,0.39372233,83888.0,83887.0,0.00017879]
[1743239461832,0.75452233,83888.0,83887.0,0.00017879]
[1743239462019,0.39372233,83888.0,83887.0,0.00017879]
[1743239462218,0.75452233,83888.0,83887.0,0.00017879]
[1743239464829,0.69654199,83888.0,83887.0,0.00017879]
[1743239465830,0.69654011,83888.0,83887.0,0.00017879]
[1743239466023,0.33573961,83888.0,83887.0,0.00017879]
[1743239466231,0.69653961,83888.0,83887.0,0.00017879]
[1743239466737,0.33573961,83888.0,83887.0,0.00017879]
[1743239466923,0.69653961,83888.0,83887.0,0.00017879]
[1743239468938,0.33573961,83888.0,83887.0,0.00017879]
[1743239469236,0.69653961,83888.0,83887.0,0.00017879]
[1743239469928,0.68254292,83888.0,83887.0,0.00017879]
[1743239470131,0.69654098,83888.0,83887.0,0.00017879]
[1743239470931,0.33574098,83888.0,83887.0,0.00017879]
[1743239471229,0.69654098,83888.0,83887.0,0.00017879]
[1743239471839,0.33574098,83888.0,83887.0,0.00017879]
[1743239472230,0.69654098,83888.0,83887.0,0.00017879]
[1743239472942,0.75452132,83888.0,83887.0,0.00017879]
[1743239474128,0.39372132,83888.0,83887.0,0.00017879]
[1743239474335,0.75452132,83888.0,83887.0,0.00017879]
[1743239476543,0.39372132,83888.0,83887.0,0.00017879]
[1743239476743,0.75452132,83888.0,83887.0,0.00017879]
[1743239477037,0.39372132,83888.0,83887.0,0.00017879]
[1743239477242,0.75452132,83888.0,83887.0,0.00017879]
[1743239477945,0.39372132,83888.0,83887.0,0.00017879]
[1743239478141,0.75450021,83888.0,83887.0,0.00017879]
[1743239480142,0.75450321,83888.0,83887.0,0.00017879]
[1743239482046,0.7545281,83888.0,83887.0,0.00017879]
[1743239484340,1.1153281,83888.0,83887.0,0.00017879]
[1743239484547,1.32995486,83888.0,83887.0,0.00017879]
[1743239484949,0.60835486,83888.0,83887.0,0.00017879]
[1743239485140,1.32995486,83888.0,83887.0,0.00017879]
[1743239486744,0.60835486,83888.0,83887.0,0.00017879]
[1743239486946,1.32995486,83888.0,83887.0,0.00017879]
[1743239487341,0.96915486,83888.0,83887.0,0.00017879]
[1743239487548,0.85519486,83888.0,83887.0,0.00017879]
[1743239487870,0.96915486,83888.0,83887.0,0.00017879]
[1743239488053,0.96914305,83888.0,83887.0,0.00017879]
[1743239488239,0.96914305,83888.0,83887.0,0.00664879]
[1743239489839,0.60834305,83888.0,83887.0,0.00664879]
[1743239490040,0.96914305,83888.0,83887.0,0.00664879]
[1743239492042,0.60834305,83888.0,83887.0,0.00664879]
[1743239492442,0.96914305,83888.0,83887.0,0.00664879]
[1743239492744,0.75451629,83888.0,83887.0,0.00664879]
[1743239494842,0.39371629,83888.0,83887.0,0.00664879]
[1743239495354,0.75451629,83888.0,83887.0,0.00664879]
[1743239496249,0.39370926,83888.0,83887.0,0.00664879]
[1743239496554,0.75450926,83888.0,83887.0,0.00664879]
[1743239499348,0.39370926,83888.0,83887.0,0.00664879]
[1743239499555,0.75450926,83888.0,83887.0,0.00664879]
[1743239501051,0.76169468,83888.0,83887.0,0.00664879]
[1743239502258,0.76172855,83888.0,83887.0,0.00664879]
[1743239504152,0.40092855,83888.0,83887.0,0.00664879]
[1743239504355,0.76172855,83888.0,83887.0,0.00664879]
[1743239504657,0.40092855,83888.0,83887.0,0.00664879]
[1743239504858,0.76172855,83888.0,83887.0,0.00664879]
[1743239505561,0.40092855,83888.0,83887.0,0.00664879]
[1743239505759,0.76172855,83888.0,83887.0,0.00664879]
[1743239506261,0.76176972,83888.0,83887.0,0.00664879]
[1743239508762,0.57982627,83888.0,83887.0,0.00664879]
[1743239509057,0.94062627,83888.0,83887.0,0.00664879]
[1743239509364,0.57982627,83888.0,83887.0,0.00664879]
[1743239509655,0.94062627,83888.0,83887.0,0.00664879]
[1743239510362,0.57982627,83888.0,83887.0,0.00664879]
[1743239510547,0.94062627,83888.0,83887.0,0.00664879]
[1743239511748,0.57982627,83888.0,83887.0,0.00664879]
[1743239511954,0.94062627,83888.0,83887.0,0.00664879]
[1743239512453,0.76176972,83888.0,83887.0,0.00664879]
[1743239515856,0.40096972,83888.0,83887.0,0.00664879]
[1743239516050,0.76176972,83888.0,83887.0,0.00664879]
[1743239520869,0.41055798,83888.0,83887.0,0.00664879]
[1743239521163,0.77135798,83888.0,83887.0,0.00664879]
[1743239522268,0.41055798,83888.0,83887.0,0.00664879]
[1743239522465,0.77135798,83888.0,83887.0,0.00664879]
[1743239522961,0.76176972,83888.0,83887.0,0.00664879]
[1743239523970,0.76376972,83888.0,83887.0,0.00664879]
[1743239524157,0.76276972,83888.0,83887.0,0.00664879]
[1743239524361,0.76676972,83888.0,83887.0,0.00664879]
[1743239524680,0.75270868,83888.0,83887.0,0.00664879]
[1743239524965,0.39190868,83888.0,83887.0,0.00664879]
[1743239525166,0.40604542,83888.0,83887.0,0.00664879]
[1743239525354,0.76684542,83888.0,83887.0,0.00664879]
[1743239525959,0.75270868,83888.0,83887.0,0.00664879]
[1743239526159,0.76681284,83888.0,83887.0,0.00664879]
[1743239526969,0.58905284,83888.0,83887.0,0.00664879]
[1743239527160,0.70297284,83888.0,83887.0,0.00664879]
[1743239527359,0.7170762,83888.0,83887.0,0.00664879]
[1743239527861,0.70297284,83888.0,83887.0,0.00664879]
[1743239528061,0.73537284,83888.0,83887.0,0.00664879]
[1743239528868,0.37457284,83888.0,83887.0,0.00664879]
[1743239529056,0.73537284,83888.0,83887.0,0.00664879]
[1743239529467,0.38867147,83888.0,83887.0,0.00664879]
[1743239529652,0.74947147,83888.0,83887.0,0.00664879]
[1743239530360,0.74944867,83888.0,83887.0,0.00664879]
[1743239530758,0.87036839,83888.0,83887.0,0.00664879]
[1743239531466,0.50956839,83888.0,83887.0,0.00664879]
[1743239531670,0.87036839,83888.0,83887.0,0.00664879]
[1743239534465,0.87034319,83888.0,83887.0,0.00664879]
[1743239534869,0.69144313,83888.0,83887.0,0.00664879]
[1743239535869,0.33064313,83888.0,83887.0,0.00664879]
[1743239536075,0.69144313,83888.0,83887.0,0.00664879]
[1743239536577,0.69145343,83888.0,83887.0,0.00664879]
[1743239540582,0.69144491,83888.0,83887.0,0.00664879]
[1743239542567,0.33064491,83888.0,83887.0,0.00664879]
[1743239542880,0.63550678,83888.0,83887.0,0.00664879]
[1743239543083,0.74942678,83888.0,83887.0,0.00664879]
[1743239543470,0.38862678,83888.0,83887.0,0.00664879]
[1743239543672,0.74942678,83888.0,83887.0,0.00664879]
[1743239544075,0.38862678,83888.0,83887.0,0.00664879]
[1743239544271,0.74942678,83888.0,83887.0,0.00664879]
[1743239546783,0.74942791,83888.0,83887.0,0.00664879]
[1743239547184,0.38862791,83888.0,83887.0,0.00664879]
[1743239547387,0.74942791,83888.0,83887.0,0.00664879]
[1743239547574,0.38862791,83888.0,83887.0,0.00664879]
[1743239547774,0.74942791,83888.0,83887.0,0.00664879]
[1743239547977,0.78172791,83888.0,83887.0,0.00664879]
[1743239549174,0.42092791,83888.0,83887.0,0.00664879]
[1743239549489,0.78172791,83888.0,83887.0,0.00664879]
[1743239552985,0.4209351,83888.0,83887.0,0.00664879]
[1743239553188,0.7817351,83888.0,83887.0,0.00664879]
[1743239554077,0.4209351,83888.0,83887.0,0.00664879]
[1743239554386,0.7817351,83888.0,83887.0,0.00664879]
[1743239554986,0.78173521,83888.0,83887.0,0.00664879]
[1743239556792,0.76767437,83888.0,83887.0,0.00664879]
[1743239557081,0.78173516,83888.0,83887.0,0.00664879]
[1743239562989,0.78170655,83888.0,83887.0,0.00664879]
[1743239564592,0.77452113,83888.0,83887.0,0.00664879]
[1743239565193,0.41372113,83888.0,83887.0,0.00664879]
[1743239565397,0.77452113,83888.0,83887.0,0.00664879]
[1743239566294,0.41372113,83888.0,83887.0,0.00664879]
[1743239566494,0.77452113,83888.0,83887.0,0.00664879]
[1743239566990,0.77450081,83888.0,83887.0,0.00664879]
[1743239569789,0.76048531,83888.0,83887.0,0.00664879]
[1743239570190,0.39968531,83888.0,83887.0,0.00664879]
[1743239570496,0.76048531,83888.0,83887.0,0.00664879]
[1743239570900,0.74647345,83888.0,83887.0,0.00664879]
[1743239571088,0.76046368,83888.0,83887.0,0.00664879]
[1743239572193,0.72816368,83888.0,83887.0,0.00664879]
[1743239573684,0.61428368,83888.0,83887.0,0.00664879]
[1743239573887,0.72816368,83888.0,83887.0,0.00664879]
[1743239574885,0.75886368,83888.0,83887.0,0.00664879]
[1743239575389,0.76604345,83888.0,83887.0,0.00664879]
[1743239576698,0.75886368,83888.0,83887.0,0.00664879]
[1743239577396,0.72816368,83888.0,83887.0,0.00664879]
[1743239581006,0.72816317,83888.0,83887.0,0.00664879]
[1743239581392,0.36736317,83888.0,83887.0,0.00664879]
[1743239581594,0.72816317,83888.0,83887.0,0.00664879]
[1743239582302,0.36736317,83888.0,83887.0,0.00664879]
[1743239582498,0.76026317,83888.0,83887.0,0.00664879]
[1743239583804,0.39946317,83888.0,83887.0,0.00664879]
[1743239584001,0.76026317,83888.0,83887.0,0.00664879]
[1743239586508,0.76025925,83888.0,83887.0,0.00664879]
[1743239588398,0.38547345,83888.0,83887.0,0.00664879]
[1743239588704,0.76026382,83888.0,83887.0,0.00664879]
[1743239589308,0.39946382,83888.0,83887.0,0.00664879]
[1743239589503,0.74627345,83888.0,83887.0,0.00664879]
[1743239589710,0.76026415,83888.0,83887.0,0.00664879]
[1743239589897,0.39946415,83888.0,83887.0,0.00664879]
[1743239590208,0.76026415,83888.0,83887.0,0.00664879]
[1743239592902,0.39946415,83888.0,83887.0,0.00664879]
[1743239593106,0.76026415,83888.0,83887.0,0.00664879]
[1743239594012,0.76026415,83888.0,83887.0,0.03774879]
[1743239597407,0.39946415,83888.0,83887.0,0.03774879]
[1743239597721,0.76026415,83888.0,83887.0,0.03774879]
[1743239597911,0.76026415,83888.0,83887.0,0.00664879]
[1743239598703,0.76027975,83888.0,83887.0,0.00664879]
[1743239598910,0.39947975,83888.0,83887.0,0.03664879]
[1743239599104,0.76027975,83888.0,83887.0,0.03664879]
[1743239604821,0.76008998,83888.0,83887.0,0.03664879]
[1743239606020,0.64620998,83888.0,83887.0,0.03664879]
[1743239606211,0.57268626,83888.0,83887.0,0.15591399]
[1743239606418,0.67274973,83888.0,83887.0,0.15659399]
[1743239606623,0.55886973,83888.0,83887.0,0.15659399]
[1743239606818,0.55886973,83888.0,83887.0,0.16837705]
[1743239607011,0.55886973,83888.0,83887.0,0.15659399]
[1743239607412,0.55686973,83888.0,83887.0,0.15659399]
[1743239607611,0.55886973,83888.0,83887.0,0.15591399]
[1743239608013,0.55886973,83888.0,83887.0,0.15651399]
[1743239608214,0.19806973,83888.0,83887.0,0.15591399]
[1743239608412,0.19406973,83888.0,83887.0,0.39659399]
[1743239608619,0.19706973,83888.0,83887.0,0.40856397]
[1743239608818,0.19706973,83888.0,83887.0,1.90856397]
[1743239609418,0.13908786,83888.0,83887.0,2.11003226]
[1743239609821,0.13836786,83888.0,83887.0,2.11003226]
[1743239610125,0.13836786,83888.0,83887.0,2.10935226]
[1743239611428,0.13736786,83888.0,83887.0,2.10935226]
[1743239611623,0.13736786,83888.0,83887.0,1.99008706]
[1743239611824,0.13736786,83888.0,83887.0,1.75008706]
[1743239612225,0.13736786,83888.0,83887.0,1.86935226]
[1743239612424,0.13736786,83888.0,83887.0,0.36935226]
[1743239613325,0.13736786,83888.0,83887.0,0.40065226]
[1743239614933,0.13812786,83888.0,83887.0,0.40133226]
[1743239615832,0.13812786,83888.0,83887.0,0.28206706]
[1743239616636,0.13812786,83888.0,83887.0,0.18789399]
[1743239616935,0.13812786,83888.0,83887.0,0.06862879]
[1743239634149,0.13812786,83888.0,83887.0,0.03862879]
[1743239637346,0.13812786,83888.0,83887.0,0.13862879]
[1743239637948,0.13812786,83888.0,83887.0,0.25789399]
[1743239638153,0.13812786,83888.0,83887.0,0.29049399]
[1743239639362,0.23812786,83888.0,83887.0,0.29049399]
[1743239640748,0.23812786,83888.0,83887.0,0.10732879]
[1743239641055,0.25184897,83888.0,83887.0,0.10732879]
[1743239641850,0.26088194,83888.0,83887.0,0.10732879]
[1743239642049,0.0596367,83882.0,83879.0,0.35599605]
[1743239642245,0.0596367,83882.0,83879.0,0.35659605]
[1743239642246,0.1192751,83880.0,83879.0,0.35659605]
[1743239642553,0.1201951,83880.0,83879.0,0.35659605]
[1743239642754,0.1844951,83880.0,83879.0,0.35659605]
[1743239643543,0.1854951,83880.0,83879.0,0.35659605]
[1743239645356,0.1854951,83880.0,83879.0,0.0006]
[1743239645554,0.1192822,83875.0,83874.0,0.2141107]
[1743239645854,0.12016221,83875.0,83874.0,0.2147907]
[1743239646354,0.13181788,83875.0,83874.0,0.2147907]
[1743239646657,0.19541788,83875.0,83874.0,0.2147907]
[1743239646845,0.19541788,83875.0,83874.0,0.2167907]
[1743239647246,0.19541788,83875.0,83874.0,0.2177907]
[1743239647547,0.19541788,83875.0,83874.0,0.2508907]
[1743239649853,0.19541788,83875.0,83874.0,0.03678]
[1743239651962,0.29760221,83875.0,83874.0,0.03678]
[1743239652258,0.30924717,83875.0,83874.0,0.03678]
[1743239652843,0.29760221,83875.0,83874.0,0.03678]
[1743239654155,0.30974245,83875.0,83874.0,0.03678]
[1743239659164,0.30974245,83875.0,83874.0,0.06808]
[1743239659871,0.30974245,83875.0,83874.0,0.1873636]
[1743239661854,0.30974245,83875.0,83874.0,0.06808]
[1743239662255,0.30974245,83875.0,83874.0,0.1873636]
[1743239665663,0.30974245,83875.0,83874.0,0.06808]
[1743239669554,0.30974245,83875.0,83874.0,0.03498]
[1743239688073,0.30974245,83875.0,83874.0,0.0343]
[1743239688273,0.30974245,83875.0,83874.0,0.0349]
[1743239695273,0.30974245,83875.0,83874.0,0.0036]
[1743239695469,0.30974245,83875.0,83857.0,0.42719526]
[1743239695470,0.0596439,83871.0,83857.0,0.42719526]
[1743239695775,0.4800964,83865.0,83864.0,0.00064]
[1743239696080,0.60864841,83865.0,83864.0,0.00064]
[1743239696473,0.59516404,83865.0,83864.0,0.00064]
[1743239696673,0.67342398,83865.0,83864.0,0.00064]
[1743239696970,0.67542398,83865.0,83864.0,0.00064]
[1743239697486,0.66176404,83865.0,83864.0,0.00064]
[1743239698383,0.66176404,83865.0,83864.0,0.00264]
[1743239698575,0.55609202,83865.0,83859.0,0.42719526]
[1743239698881,0.1193036,83860.0,83859.0,0.42779526]
[1743239699077,0.12069534,83860.0,83859.0,0.42779526]
[1743239699775,0.18579534,83860.0,83859.0,0.42779526]
[1743239699973,0.18679534,83860.0,83859.0,0.42779526]
[1743239700787,0.18679534,83860.0,83859.0,0.0006]
[1743239701277,0.1193064,83858.0,83857.0,0.0331]
[1743239701579,0.54759534,83860.0,83856.0,0.00011916]
[1743239701580,0.1193078,83857.0,83856.0,0.00011916]
[1743239701879,0.1524078,83857.0,83856.0,0.00011916]
[1743239702279,0.16440994,83857.0,83856.0,0.00011916]
[1743239702897,0.16640994,83857.0,83856.0,0.00011916]
[1743239703271,0.16740994,83857.0,83856.0,0.00011916]
[1743239704867,0.27450471,83857.0,83856.0,0.00011916]
[1743239705073,0.1193221,83847.0,83846.0,0.0313]
[1743239705272,0.1193221,83847.0,83846.0,0.0638]
[1743239705871,0.1518221,83847.0,83846.0,0.0638]
[1743239706383,0.1518221,83847.0,83846.0,0.0658]
[1743239706570,0.15320949,83847.0,83846.0,0.09914]
[1743239709478,0.15320949,83847.0,83846.0,0.0979]
[1743239709678,0.15320949,83847.0,83846.0,0.0985]
[1743239709880,0.16492705,83847.0,83846.0,0.0985]
[1743239713391,0.15320949,83847.0,83846.0,0.0985]
[1743239713582,0.15320949,83847.0,83846.0,0.2178235]
[1743239713784,0.10709477,83859.0,83858.0,0.1193064]
[1743239713982,0.10709477,83859.0,83858.0,0.1199064]
[1743239713983,0.22639977,83859.0,83858.0,0.1199064]
[1743239714182,0.22727978,83859.0,83858.0,1.6199064]
[1743239714401,0.119305,83859.0,83858.0,0.1199064]
[1743239714583,0.120225,83859.0,83858.0,0.1199064]
[1743239714785,0.120225,83859.0,83858.0,0.4029064]
[1743239714986,0.121305,83859.0,83858.0,0.4029064]
[1743239715296,0.121305,83859.0,83858.0,0.4337064]
[1743239715480,0.123305,83859.0,83858.0,0.4337064]
[1743239716595,0.123305,83859.0,83858.0,0.44559555]
[1743239716791,0.123305,83859.0,83858.0,0.4337064]
[1743239718196,0.004,83859.0,83858.0,0.7945064]
[1743239718393,0.00492,83859.0,83858.0,0.7945064]
[1743239718694,0.00492,83859.0,83858.0,2.2945064]
[1743239718895,0.004,83859.0,83858.0,2.2945064]
[1743239719598,0.1192972,83865.0,83864.0,0.1192964]
[1743239719799,0.1192972,83865.0,83864.0,0.1198964]
[1743239720097,0.15215721,83865.0,83864.0,0.1198964]
[1743239720293,0.15215721,83865.0,83864.0,1.6829964]
[1743239720485,0.1511972,83865.0,83864.0,1.6829964]
[1743239720888,0.1541972,83865.0,83864.0,1.6829964]
[1743239722587,0.1571972,83865.0,83864.0,1.6829964]
[1743239722788,0.1571972,83865.0,83864.0,0.1829964]
[1743239722983,0.15815721,83865.0,83864.0,0.1829964]
[1743239723389,0.1571972,83865.0,83864.0,0.1829964]
[1743239725094,0.16938368,83865.0,83864.0,0.1829964]
[1743239725398,0.1895972,83865.0,83864.0,0.1829964]
[1743239728907,0.1895972,83865.0,83864.0,0.0325]
[1743239729115,0.19047721,83865.0,83864.0,0.0325]
[1743239729509,0.19047721,83865.0,83864.0,0.0006]
[1743239729709,0.1895972,83865.0,83864.0,0.0006]
[1743239730718,0.3034372,83865.0,83864.0,0.0006]
[1743239731020,0.30431721,83865.0,83864.0,0.0006]
[1743239734519,0.33501721,83865.0,83864.0,0.0006]
[1743239735306,0.1193021,83861.0,83860.0,0.1193029]
[1743239735510,0.12018211,83861.0,83860.0,0.1199029]
[1743239736425,0.18078211,83861.0,83860.0,0.1199029]
[1743239736807,0.18578211,83861.0,83860.0,0.1199029]
[1743239737012,0.18578211,83861.0,83860.0,0.0006]
[1743239740117,0.18578211,83861.0,83860.0,0.1199036]
[1743239744516,0.18578211,83861.0,83860.0,0.0006]
[1743239744718,0.54658211,83861.0,83860.0,0.0006]
[1743239744922,0.1193078,83857.0,83856.0,0.21419012]
[1743239745114,0.12018781,83857.0,83856.0,0.21479012]
[1743239745813,0.21218781,83857.0,83856.0,0.21479012]
[1743239746218,0.21318781,83857.0,83856.0,0.21479012]
[1743239746419,0.21518781,83857.0,83856.0,0.21479012]
[1743239749218,0.21518781,83857.0,83856.0,0.0006]
[1743239749522,0.1193149,83852.0,83851.0,0.21419012]
[1743239749720,0.59483491,83852.0,83851.0,0.21479012]
[1743239750318,0.65743491,83852.0,83851.0,0.21479012]
[1743239751518,0.66941553,83852.0,83851.0,0.21479012]
[1743239753518,0.66941553,83852.0,83851.0,0.0006]
[1743239753718,0.1193192,83849.0,83848.0,0.0312]
[1743239753918,0.12019921,83849.0,83848.0,0.0318]
[1743239754621,0.15129921,83849.0,83848.0,0.0318]
[1743239756725,0.15129921,83849.0,83848.0,0.0328]
[1743239767334,0.15129921,83849.0,83848.0,0.0658]
[1743239772737,0.1504192,83849.0,83848.0,0.0658]
[1743239772937,0.1504192,83849.0,83848.0,0.0328]
[1743239773124,0.15129921,83849.0,83848.0,0.0328]
[1743239773525,0.1504192,83849.0,83848.0,0.0328]
[1743239774849,0.15129921,83849.0,83848.0,0.0328]
[1743239776241,0.1504192,83849.0,83848.0,0.0328]
[1743239776543,0.15129921,83849.0,83848.0,0.0328]
[1743239776844,0.18379921,83849.0,83848.0,0.0328]
[1743239779641,0.18379921,83849.0,83848.0,0.24699012]
[1743239779947,0.18379921,83849.0,83848.0,0.21579012]
[1743239786744,0.19755152,83849.0,83848.0,0.0016]
[1743239786947,0.19755168,83849.0,83848.0,0.0016]
[1743239788352,0.18379921,83849.0,83848.0,0.0016]
[1743239788751,0.19755774,83849.0,83848.0,0.0016]
[1743239790158,0.20477018,83849.0,83848.0,0.0006]
[1743239790848,0.20481052,83849.0,83848.0,0.0006]
[1743239791051,0.19101165,83849.0,83848.0,0.0006]
[1743239791450,0.1193292,83842.0,83841.0,0.3608]
[1743239791651,0.24134165,83842.0,83841.0,0.36148]
[1743239792251,0.27184165,83842.0,83841.0,0.00068]
[1743239792758,0.27184165,83842.0,83841.0,0.00268]
[1743239793255,0.27184165,83842.0,83841.0,0.00368]
[1743239794355,0.28562461,83842.0,83841.0,0.00368]
[1743239794570,0.31792461,83842.0,83841.0,0.00368]
[1743239794753,0.30414165,83842.0,83841.0,0.00368]
[1743239794953,0.31792004,83842.0,83841.0,0.00368]
[1743239795357,0.31792004,83842.0,83841.0,0.003]
[1743239795564,0.31792004,83842.0,83841.0,0.001]
[1743239795959,0.1193334,83839.0,83838.0,0.21467099]
[1743239796152,0.12021341,83839.0,83838.0,0.21527099]
[1743239796355,0.12742585,83839.0,83838.0,0.21527099]
[1743239796853,0.19272585,83839.0,83838.0,0.21527099]
[1743239797356,0.19272585,83839.0,83834.0,0.285341]
[1743239797357,0.1193391,83835.0,83834.0,0.285341]
[1743239797562,0.48125911,83835.0,83834.0,0.285341]
[1743239797759,0.49501742,83835.0,83834.0,0.285941]
[1743239798369,0.56682986,83835.0,83834.0,0.285941]
[1743239799868,0.56782986,83835.0,83834.0,0.285941]
[1743239800471,0.55407155,83835.0,83834.0,0.285941]
[1743239800664,0.56782345,83835.0,83834.0,0.285941]
[1743239801170,0.1193534,83825.0,83824.0,0.0316]
[1743239801370,0.23455341,83825.0,83824.0,0.0316]
[1743239801870,0.30496585,83825.0,83824.0,0.0316]
[1743239802674,0.30496585,83825.0,83824.0,0.0326]
[1743239802875,0.30496585,83825.0,83824.0,0.0336]
[1743239803475,0.54496585,83825.0,83824.0,0.0336]
[1743239803866,0.54496585,83825.0,83824.0,0.002]
[1743239804768,0.55698451,83825.0,83824.0,0.002]
[1743239804975,0.55698451,83825.0,83824.0,0.001]
[1743239805179,0.55698451,83825.0,83824.0,0.002]
[1743239805371,0.55698451,83825.0,83824.0,0.001]
[1743239807070,0.1193605,83820.0,83819.0,0.0305]
[1743239807271,0.39060051,83820.0,83819.0,0.0305]
[1743239807969,0.45340051,83820.0,83819.0,0.0305]
[1743239808178,0.45340051,83820.0,83819.0,0.0325]
[1743239808781,0.45340051,83820.0,83819.0,0.0335]
[1743239810880,0.46272957,83820.0,83819.0,0.0335]
[1743239812199,0.4703003,83820.0,83819.0,0.0335]
[1743239812578,0.8311003,83820.0,83819.0,0.0335]
[1743239812782,0.83114496,83820.0,83819.0,0.0315]
[1743239813983,0.82177124,83820.0,83819.0,0.0315]
[1743239822583,0.46097124,83820.0,83819.0,0.0315]
[1743239822889,0.82177124,83820.0,83819.0,0.0315]
[1743239833284,0.87979782,83820.0,83819.0,0.0315]
[1743239833482,0.89367887,83820.0,83819.0,0.0315]
[1743239833697,0.89368046,83820.0,83819.0,0.0315]
[1743239838090,0.53288046,83820.0,83819.0,0.0315]
[1743239838286,0.89368046,83820.0,83819.0,0.0315]
[1743239839690,0.87979782,83820.0,83819.0,0.0315]
[1743239840004,0.89371628,83820.0,83819.0,0.0315]
[1743239841291,0.53291628,83820.0,83819.0,0.0315]
[1743239841487,0.89371628,83820.0,83819.0,0.0315]
[1743239842598,0.53291628,83820.0,83819.0,0.0315]
[1743239842997,0.89371628,83820.0,83819.0,0.0315]
[1743239843506,0.53291628,83820.0,83819.0,0.0315]
[1743239843701,0.89371628,83820.0,83819.0,0.0315]
[1743239846590,0.53291628,83820.0,83819.0,0.0315]
[1743239847090,0.89371628,83820.0,83819.0,0.0315]
[1743239850910,1.00771628,83820.0,83819.0,0.0315]
[1743239853907,1.00762769,83820.0,83819.0,0.0315]
[1743239855813,1.00765905,83820.0,83819.0,0.0315]
[1743239856708,1.00757905,83820.0,83819.0,0.0315]
[1743239858795,0.64677905,83820.0,83819.0,0.0315]
[1743239859109,1.00757905,83820.0,83819.0,0.0315]
[1743239860811,0.64677905,83820.0,83819.0,0.0315]
[1743239861015,1.00757905,83820.0,83819.0,0.0315]
[1743239861506,0.64677905,83820.0,83819.0,0.0315]
[1743239861710,1.00757905,83820.0,83819.0,0.0315]
[1743239862509,0.64677905,83820.0,83819.0,0.0315]
[1743239862810,1.00757905,83820.0,83819.0,0.0315]
[1743239863000,0.64677905,83820.0,83819.0,0.0315]
[1743239863200,1.00757905,83820.0,83819.0,0.0315]
[1743239864496,1.00753905,83820.0,83819.0,0.0315]
[1743239865907,0.64673905,83820.0,83819.0,0.0315]
[1743239866114,1.00753905,83820.0,83819.0,0.0315]
[1743239868908,0.64673905,83820.0,83819.0,0.0315]
[1743239869103,1.00753905,83820.0,83819.0,0.0315]
[1743239869920,0.64670377,83820.0,83819.0,0.0315]
[1743239870112,1.00750377,83820.0,83819.0,0.0315]
[1743239870509,0.84939782,83820.0,83819.0,0.0315]
[1743239870708,0.96327782,83820.0,83819.0,0.0321]
[1743239870910,0.93087782,83820.0,83819.0,0.1843619]
[1743239871209,0.93087782,83820.0,83819.0,0.4443619]
[1743239872206,0.56250709,83820.0,83819.0,0.4443619]
[1743239872817,0.44862709,83820.0,83819.0,0.4443619]
[1743239873015,0.39060051,83820.0,83819.0,0.4443619]
[1743239874121,0.42210051,83820.0,83819.0,0.4443619]
[1743239874712,0.42210051,83820.0,83819.0,0.325]
[1743239876313,0.45500051,83820.0,83819.0,0.0321]
[1743239876519,0.81580051,83820.0,83819.0,0.0321]
[1743239876722,0.81580051,83820.0,83819.0,0.0315]
[1743239877819,0.81580051,83820.0,83819.0,0.0321]
[1743239880216,0.81580051,83820.0,83819.0,0.0633]
[1743239880612,0.81580051,83820.0,83819.0,0.0639]
[1743239881918,0.81580051,83820.0,83819.0,0.0321]
[1743239882120,0.45500051,83820.0,83819.0,0.0315]
[1743239882418,0.45500051,83820.0,83819.0,0.0321]
[1743239884019,0.45500051,83820.0,83819.0,0.0315]
[1743239884610,0.45500051,83820.0,83819.0,0.0321]
[1743239884805,0.46226682,83820.0,83819.0,0.0315]
[1743239885616,0.46226682,83820.0,83819.0,0.03218]
[1743239885817,0.46226682,83820.0,83819.0,0.0315]